bitfinex/quotes_BTCUSD_20260310
["timestamp","ask_amount","ask_price","bid_price","bid_amount"]
[1773130168137,0.07053578,70886.0,70864.0,0.07055768]
[1773130168386,0.597366,70885.0,70864.0,0.07055768]
[1773130168605,0.00152,70890.0,70870.0,0.28374152]
[1773130168828,0.00152,70892.0,70871.0,0.13991147]
[1773130169026,0.03,70891.0,70872.0,0.13991147]
[1773130169226,0.03,70891.0,70873.0,0.13839147]
[1773130169412,0.03,70889.0,70874.0,0.13991147]
[1773130169561,0.03,70889.0,70875.0,0.13991147]
[1773130169763,0.03,70889.0,70876.0,0.13991147]
[1773130169985,0.03,70889.0,70877.0,0.13839147]
[1773130170363,0.00152,70891.0,70878.0,0.07054375]
[1773130170564,0.00152,70891.0,70879.0,0.13839147]
[1773130170817,0.03,70890.0,70879.0,0.13839147]
[1773130171477,0.627366,70890.0,70879.0,0.13839147]
[1773130171680,0.627366,70890.0,70877.0,0.07054391]
[1773130171851,0.627366,70890.0,70878.0,0.13860413]
[1773130172052,0.07053101,70891.0,70870.0,0.07055091]
[1773130172053,0.03,70885.0,70870.0,0.07055091]
[1773130172198,0.627366,70883.0,70871.0,0.13870465]
[1773130172412,0.07052783,70894.0,70872.0,0.20925437]
[1773130172627,0.07052783,70894.0,70873.0,0.14022465]
[1773130172910,0.07052783,70894.0,70874.0,0.13870465]
[1773130173057,0.66789383,70894.0,70875.0,0.13870465]
[1773130173265,0.66789383,70894.0,70876.0,0.13870465]
[1773130173468,0.0002,70891.0,70877.0,0.13870465]
[1773130173727,0.0002,70891.0,70873.0,0.00152]
[1773130173728,0.0002,70891.0,70878.0,0.13870465]
[1773130173914,0.0002,70891.0,70879.0,0.14022465]
[1773130174115,0.0002,70891.0,70880.0,0.13870465]
[1773130174314,0.03,70889.0,70879.0,0.07206241]
[1773130174654,0.627062,70887.0,70878.0,0.07054319]
[1773130174851,0.628582,70887.0,70876.0,0.00152]
[1773130175104,0.628582,70887.0,70877.0,0.13882767]
[1773130175322,0.628582,70887.0,70876.0,0.00152]
[1773130175508,0.628582,70887.0,70877.0,0.13883014]
[1773130175716,0.628582,70887.0,70876.0,0.00152]
[1773130175936,0.628582,70887.0,70877.0,0.13882931]
[1773130176147,0.628582,70887.0,70876.0,0.00152]
[1773130176356,0.03,70885.0,70877.0,0.13882274]
[1773130176560,0.03,70881.0,70870.0,0.00022]
[1773130176788,0.03,70877.0,70871.0,0.1388334]
[1773130176917,0.59929532,70877.0,70870.0,0.07077134]
[1773130177126,0.59929532,70877.0,70870.0,0.00022]
[1773130177537,0.56959932,70890.0,70874.0,0.11106529]
[1773130177737,0.56959932,70890.0,70871.0,0.07055071]
[1773130177738,0.03,70889.0,70873.0,0.11106529]
[1773130177965,0.03,70883.0,70871.0,0.11106529]
[1773130178288,0.03,70879.0,70870.0,0.07077135]
[1773130180615,0.00152,70882.0,70870.0,0.07077135]
[1773130180868,0.07073111,70891.0,70873.0,0.11106529]
[1773130180869,0.0002,70891.0,70873.0,0.11106529]
[1773130181070,0.56959932,70897.0,70876.0,0.11106529]
[1773130181307,0.00152,70896.0,70878.0,0.11106529]
[1773130181509,0.56990332,70895.0,70877.0,0.11106529]
[1773130181712,0.00023,70900.0,70880.0,0.15920176]
[1773130181917,0.00023,70900.0,70882.0,0.11376552]
[1773130182120,0.00023,70900.0,70887.0,0.11100066]
[1773130182328,0.00175,70900.0,70887.0,0.11252066]
[1773130182745,1e-08,70900.0,70888.0,0.18153445]
[1773130182954,0.57038332,70916.0,70896.0,0.11100066]
[1773130183159,0.00048,70916.0,70902.0,0.11100066]
[1773130183378,0.002,70916.0,70903.0,0.11100066]
[1773130183599,0.00048,70916.0,70903.0,0.11100066]
[1773130184080,0.00023,70925.0,70903.0,0.11100066]
[1773130184300,0.07048943,70933.0,70902.0,0.00152]
[1773130184301,0.54831025,70933.0,70915.0,0.15920176]
[1773130184518,0.54831025,70933.0,70915.0,0.00152]
[1773130184519,0.54831025,70931.0,70915.0,0.00152]
[1773130184737,0.07048802,70935.0,70915.0,0.00152]
[1773130184738,0.00023,70950.0,70916.0,0.07050595]
[1773130184950,1e-08,70936.0,70924.0,0.68872774]
[1773130185183,1e-08,70936.0,70927.0,0.11376552]
[1773130185375,0.00015,70958.0,70928.0,0.11100066]
[1773130185582,0.0704662,70957.0,70933.0,0.11100066]
[1773130185796,0.61877744,70955.0,70934.0,0.00152]
[1773130186020,0.54831025,70955.0,70934.0,0.11252066]
[1773130186226,0.54831025,70955.0,70934.0,0.00152]
[1773130186665,0.54831025,70955.0,70930.0,0.15920176]
[1773130186874,0.54831025,70955.0,70936.0,0.07048607]
[1773130187073,0.0008328,70956.0,70938.0,0.11376552]
[1773130188365,0.54831025,70955.0,70928.0,0.07049335]
[1773130188573,0.54831025,70953.0,70929.0,0.00152]
[1773130188751,0.54831025,70953.0,70926.0,0.070496]
[1773130188752,0.07047017,70952.0,70927.0,0.00152]
[1773130188988,0.54831025,70951.0,70927.0,0.00152]
[1773130189405,0.54831025,70951.0,70926.0,0.070496]
[1773130189763,0.54831025,70951.0,70925.0,0.00023]
[1773130189941,0.70102906,70949.0,70918.0,0.07050302]
[1773130190141,0.54808025,70948.0,70920.0,0.07050097]
[1773130190348,0.54831025,70946.0,70920.0,0.07050097]
[1773130190719,0.03,70943.0,70919.0,0.07050296]
[1773130190923,0.60703483,70941.0,70920.0,0.16072176]
[1773130191128,0.03,70941.0,70921.0,0.11502955]
[1773130191333,0.57703483,70949.0,70921.0,0.11502955]
[1773130191547,0.00148,70948.0,70921.0,0.11502955]
[1773130191722,0.64750861,70949.0,70921.0,0.11502955]
[1773130191723,0.57703483,70949.0,70921.0,0.11502955]
[1773130191959,0.03,70948.0,70930.0,0.15920176]
[1773130192168,0.64750075,70957.0,70920.0,0.31992352]
[1773130192169,0.64853465,70956.0,70931.0,0.00152]
[1773130192367,0.57703483,70955.0,70932.0,0.00152]
[1773130192701,0.07046819,70954.0,70933.0,0.07048905]
[1773130192914,0.03,70950.0,70933.0,0.07048905]
[1773130193121,0.03,70950.0,70934.0,0.00152]
[1773130193316,0.00148,70949.0,70934.0,0.00152]
[1773130193724,0.03,70947.0,70932.0,0.07048905]
[1773130194084,0.60703483,70947.0,70934.0,0.00152]
[1773130194289,0.03,70947.0,70934.0,0.00152]
[1773130194480,0.64749855,70959.0,70934.0,0.00152]
[1773130194613,0.00148,70954.0,70934.0,0.00152]
[1773130194814,0.03,70955.0,70935.0,0.07048706]
[1773130195058,0.03,70955.0,70936.0,0.59223788]
[1773130195499,0.0015164,70956.0,70940.0,0.15920176]
[1773130195670,1e-08,70956.0,70941.0,0.11650955]
[1773130196202,0.03,70955.0,70941.0,0.00148]
[1773130196501,1e-08,70956.0,70941.0,0.11502955]
[1773130196703,0.00562,70964.0,70945.0,0.11502955]
[1773130196850,0.00562,70964.0,70946.0,0.18550568]
[1773130197047,0.00562,70964.0,70947.0,0.11502955]
[1773130197253,0.00048,70967.0,70950.0,0.15920176]
[1773130197454,0.00048,70967.0,70949.0,0.11502955]
[1773130198106,0.03,70966.0,70949.0,0.11502955]
[1773130198761,0.03,70966.0,70950.0,0.07047216]
[1773130199196,0.10045679,70966.0,70950.0,0.07047216]
[1773130200016,0.03,70966.0,70950.0,0.07047216]
[1773130200261,0.03,70965.0,70950.0,0.07047216]
[1773130200713,0.00148,70964.0,70946.0,0.07047534]
[1773130200921,0.00148,70964.0,70944.0,0.00148]
[1773130200922,0.03,70959.0,70944.0,0.00148]
[1773130201166,0.03,70955.0,70942.0,0.00148]
[1773130201367,0.00023,70975.0,70945.0,0.11502955]
[1773130201565,1e-08,70967.0,70952.0,0.11502955]
[1773130201721,1e-08,70967.0,70954.0,0.11502955]
[1773130201924,1e-08,70967.0,70953.0,0.00148]
[1773130202550,0.03,70966.0,70954.0,0.00148]
[1773130202919,0.03,70962.0,70946.0,0.07047613]
[1773130203136,0.03,70962.0,70947.0,0.59371788]
[1773130203429,1e-08,70967.0,70952.0,0.59223788]
[1773130203590,1e-08,70967.0,70953.0,0.11502955]
[1773130203792,1e-08,70967.0,70954.0,0.11650955]
[1773130204039,1e-08,70967.0,70946.0,0.07047613]
[1773130204040,0.03,70965.0,70946.0,0.07047613]
[1773130204283,0.59509963,70965.0,70946.0,0.07047613]
[1773130204488,0.59509963,70965.0,70940.0,0.00148]
[1773130204698,0.59509963,70965.0,70939.0,0.00148]
[1773130204834,0.59509963,70960.0,70941.0,0.0704811]
[1773130205204,0.55947963,70960.0,70942.0,0.00148]
[1773130205319,0.55947963,70960.0,70937.0,0.00148]
[1773130205676,0.03,70952.0,70934.0,0.0704876]
[1773130205877,0.03,70950.0,70934.0,0.0704876]
[1773130206905,0.03,70949.0,70934.0,0.0704876]
[1773130207099,0.03,70947.0,70934.0,0.0704876]
[1773130207301,0.59509963,70945.0,70932.0,0.07196988]
[1773130207501,0.03,70945.0,70932.0,0.07196988]
[1773130207921,0.03,70943.0,70932.0,0.07196988]
[1773130208895,0.03,70942.0,70932.0,0.07196988]
[1773130209245,0.03,70936.0,70923.0,0.07049855]
[1773130209449,0.03,70932.0,70909.0,0.11100066]
[1773130209570,0.03,70930.0,70908.0,0.07761322]
[1773130209768,0.03,70930.0,70908.0,0.18522766]
[1773130210177,0.03,70928.0,70908.0,0.18522766]
[1773130210390,0.03,70924.0,70908.0,0.07761322]
[1773130210792,0.0704811,70941.0,70910.0,0.00022]
[1773130210793,0.03,70922.0,70910.0,0.00022]
[1773130211249,0.03,70920.0,70910.0,0.00022]
[1773130211586,0.03,70918.0,70902.0,0.07051897]
[1773130211775,0.00148,70919.0,70902.0,0.07199897]
[1773130211982,0.00130445,70919.0,70902.0,0.07199897]
[1773130212379,0.00148,70919.0,70902.0,0.07199897]
[1773130213289,0.00148,70918.0,70902.0,0.07199897]
[1773130213713,0.59509963,70916.0,70902.0,0.07199897]
[1773130213917,0.00148,70921.0,70903.0,0.10761444]
[1773130214337,0.00148,70923.0,70903.0,0.10761444]
[1773130214551,0.00148,70923.0,70903.0,0.2186151]
[1773130215694,0.00148,70923.0,70904.0,0.07051788]
[1773130216050,0.00148,70923.0,70903.0,0.28913298]
[1773130216051,0.66707899,70923.0,70903.0,0.11100066]
[1773130216249,0.66707899,70923.0,70903.0,0.00148]
[1773130216856,0.21789708,70923.0,70901.0,0.00148]
[1773130217057,0.21789708,70923.0,70900.0,0.00023]
[1773130217058,0.03,70919.0,70894.0,0.1815281]
[1773130217227,0.18641616,70924.0,70901.0,0.57426702]
[1773130217228,0.07049799,70924.0,70901.0,0.57426702]
[1773130217433,0.07072703,70925.0,70904.0,0.10761444]
[1773130217637,0.07072703,70925.0,70902.0,0.00148]
[1773130217638,0.00023,70925.0,70906.0,0.10761444]
[1773130217863,0.00023,70925.0,70907.0,0.07051489]
[1773130218162,0.03,70924.0,70908.0,0.00148]
[1773130218375,0.00562,70936.0,70910.0,0.15916447]
[1773130218566,0.00562,70936.0,70921.0,0.10761444]
[1773130218784,0.00562,70936.0,70922.0,0.00148]
[1773130218912,0.00148,70944.0,70924.0,0.2186151]
[1773130219344,0.03,70942.0,70924.0,0.10761444]
[1773130219543,0.59509963,70942.0,70925.0,0.00148]
[1773130219800,0.59509963,70942.0,70926.0,0.00148]
[1773130219999,0.03,70938.0,70927.0,0.00148]
[1773130220196,0.07047221,70950.0,70927.0,0.00148]
[1773130220402,0.00148,70949.0,70927.0,0.00148]
[1773130220621,0.56657963,70949.0,70927.0,0.00148]
[1773130220762,0.00148,70948.0,70927.0,0.00148]
[1773130220964,0.56509963,70947.0,70927.0,0.00148]
[1773130221191,0.03,70946.0,70927.0,0.00148]
[1773130221506,0.03,70942.0,70927.0,0.00148]
[1773130221660,0.59509963,70942.0,70927.0,0.00148]
[1773130221860,0.03,70942.0,70928.0,0.07049402]
[1773130222364,0.03,70940.0,70929.0,0.00148]
[1773130222564,0.03,70940.0,70930.0,0.00148]
[1773130222758,0.03,70940.0,70927.0,0.07049402]
[1773130222984,0.59509963,70940.0,70928.0,0.00148]
[1773130223581,0.03,70943.0,70928.0,0.00148]
[1773130223907,0.03,70939.0,70929.0,0.07049302]
[1773130224309,1e-08,70956.0,70932.0,0.1492]
[1773130224513,0.0008054,70983.0,70943.0,0.55355729]
[1773130224514,0.55059872,70970.0,70943.0,0.55355729]
[1773130224719,0.00148,70972.0,70952.0,0.66443563]
[1773130225065,0.65127641,70975.0,70953.0,0.00148]
[1773130225271,0.03,70967.0,70945.0,0.11100066]
[1773130225487,0.11056018,70971.0,70936.0,0.00562]
[1773130225488,0.03,70961.0,70936.0,0.00562]
[1773130225695,0.5822109,70956.0,70936.0,0.00562]
[1773130225907,0.03,70951.0,70934.0,0.00148]
[1773130226125,0.03,70949.0,70934.0,0.00148]
[1773130226341,0.03,70945.0,70930.0,0.00148]
[1773130226549,0.5822109,70947.0,70929.0,0.00148]
[1773130227217,0.5822109,70947.0,70928.0,0.00148]
[1773130227428,0.5822109,70947.0,70924.0,0.00148]
[1773130227633,0.03,70944.0,70923.0,0.00148]
[1773130227839,0.5822109,70939.0,70922.0,0.00148]
[1773130228055,0.03,70932.0,70923.0,0.00148]
[1773130228268,0.6122109,70932.0,70913.0,0.00148]
[1773130228923,0.6122109,70932.0,70908.0,0.00562]
[1773130229100,0.6122109,70932.0,70914.0,0.00148]
[1773130229999,0.03,70930.0,70908.0,0.00562]
[1773130230199,0.5822109,70925.0,70911.0,0.00148]
[1773130230401,0.07049104,70931.0,70908.0,0.00562]
[1773130230402,0.6122109,70920.0,70908.0,0.00562]
[1773130230640,0.6122109,70920.0,70900.0,0.00023]
[1773130230848,0.6122109,70920.0,70896.0,0.00148]
[1773130231054,0.6122109,70920.0,70896.0,0.10820172]
[1773130231055,0.03,70920.0,70896.0,0.10820172]
[1773130231255,0.03,70920.0,70898.0,0.10672172]
[1773130231428,0.03,70917.0,70892.0,0.07052882]
[1773130231577,0.5822109,70918.0,70893.0,0.00148]
[1773130231773,0.58203528,70918.0,70894.0,0.00148]
[1773130232205,0.5822109,70916.0,70891.0,0.07052982]
[1773130232418,0.5822109,70916.0,70895.0,0.00148]
[1773130232895,0.5822109,70916.0,70889.0,0.18153147]
[1773130233099,0.5822109,70916.0,70890.0,0.00148]
[1773130233426,0.5822109,70916.0,70891.0,0.00148]
[1773130234232,0.59040468,70914.0,70892.0,0.07052982]
[1773130234437,0.07050694,70915.0,70892.0,0.07052982]
[1773130234438,0.03,70911.0,70893.0,0.69375116]
[1773130234861,0.03,70911.0,70893.0,0.10672172]
[1773130235058,0.62040468,70911.0,70892.0,0.07052982]
[1773130235929,0.62040468,70911.0,70891.0,0.07201054]
[1773130236074,0.62040468,70911.0,70889.0,0.00022]
[1773130236272,0.03,70907.0,70890.0,0.00148]
[1773130236473,0.62040468,70904.0,70890.0,0.00148]
[1773130236909,0.03,70904.0,70890.0,0.00148]
[1773130237469,0.03,70900.0,70887.0,0.00015]
[1773130237596,0.59040468,70895.0,70885.0,0.00148]
[1773130237956,0.03,70892.0,70884.0,0.00148]
[1773130238153,0.03,70890.0,70882.0,0.00148]
[1773130238350,0.03,70888.0,70882.0,0.00148]
[1773130238551,0.03,70888.0,70875.0,0.00023]
[1773130238853,0.62040468,70888.0,70875.0,0.07077609]
[1773130239863,0.62040468,70888.0,70875.0,0.00023]
[1773130240267,0.03,70886.0,70875.0,0.00023]
[1773130240474,0.62040468,70886.0,70874.0,0.0017]
[1773130241096,0.62040468,70886.0,70874.0,0.07224721]
[1773130241298,0.62040468,70886.0,70874.0,0.0017]
[1773130242316,0.07053678,70885.0,70874.0,0.0017]
[1773130242528,0.03,70884.0,70874.0,0.0017]
[1773130243256,0.03,70883.0,70874.0,0.07224699]
[1773130244103,0.03,70883.0,70874.0,0.0017]
[1773130244353,0.03,70883.0,70874.0,0.07224722]
[1773130244539,0.03,70882.0,70874.0,0.07076722]
[1773130244801,0.03,70882.0,70874.0,0.07224722]
[1773130245023,0.59040468,70898.0,70875.0,0.58702944]
[1773130245231,0.00148,70898.0,70878.0,0.1034512]
[1773130245431,0.59040468,70897.0,70878.0,0.1034512]
[1773130245637,0.03,70894.0,70874.0,0.07211272]
[1773130245837,0.62040468,70890.0,70874.0,0.07063272]
[1773130246045,0.62040468,70890.0,70875.0,0.00148]
[1773130246596,0.69093742,70890.0,70874.0,0.07063272]
[1773130246802,0.00148,70892.0,70876.0,0.00148]
[1773130247002,0.00148,70892.0,70877.0,0.1034512]
[1773130247206,0.10053081,70891.0,70876.0,0.00148]
[1773130247406,0.03,70889.0,70877.0,0.00148]
[1773130247774,0.03,70889.0,70874.0,8.55e-05]
[1773130247983,0.03,70889.0,70875.0,0.00148]
[1773130248816,0.00148,70897.0,70881.0,0.1034512]
[1773130249102,0.00148,70904.0,70883.0,0.58702944]
[1773130249250,0.00148,70904.0,70876.0,0.07054574]
[1773130249251,0.59040468,70903.0,70876.0,0.07054574]
[1773130249509,0.00148,70905.0,70882.0,0.1034512]
[1773130249713,0.03,70906.0,70885.0,0.58702944]
[1773130249915,0.03,70906.0,70886.0,0.1049312]
[1773130250116,0.03,70904.0,70876.0,0.07054574]
[1773130250282,0.03,70896.0,70882.0,0.00148]
[1773130250483,0.03,70892.0,70882.0,0.00148]
[1773130250733,0.03,70890.0,70882.0,0.00148]
[1773130251103,0.03,70890.0,70880.0,0.00148]
[1773130252064,0.0705233,70899.0,70882.0,0.09993939]
[1773130252065,0.00148,70899.0,70882.0,0.09993939]
[1773130252342,0.0707521,70900.0,70882.0,0.09993939]
[1773130252751,0.0707521,70900.0,70883.0,0.00148]
[1773130252752,0.57906017,70899.0,70883.0,0.00148]
[1773130252978,0.03,70898.0,70883.0,0.00148]
[1773130253108,0.60906017,70896.0,70875.0,0.07076574]
[1773130253318,0.60906017,70896.0,70878.0,0.00148]
[1773130255451,0.03,70894.0,70879.0,0.07054275]
[1773130255660,0.03,70892.0,70880.0,0.00148]
[1773130255859,0.03,70892.0,70876.0,0.07054478]
[1773130256220,0.03,70892.0,70878.0,0.00148]
[1773130256221,0.60906017,70892.0,70878.0,0.00148]
[1773130256438,0.60906017,70892.0,70875.0,0.00022]
[1773130256645,0.60906017,70892.0,70876.0,0.00148]
[1773130257026,0.03,70891.0,70878.0,0.09993939]
[1773130257247,0.07052525,70897.0,70883.0,0.09993939]
[1773130257414,0.00023,70900.0,70884.0,0.17195717]
[1773130257622,0.00023,70900.0,70886.0,0.09993939]
[1773130257817,0.00023,70900.0,70887.0,0.09993939]
[1773130257998,0.10075256,70900.0,70887.0,0.09993939]
[1773130258207,0.10075256,70900.0,70887.0,0.21024608]
[1773130258773,0.60929017,70900.0,70887.0,0.11030669]
[1773130259218,0.60929017,70900.0,70888.0,0.11030669]
[1773130259654,0.60929017,70900.0,70886.0,0.11030669]
[1773130259655,0.0002,70892.0,70886.0,0.11030669]
[1773130259877,0.0002,70892.0,70885.0,0.11030669]
[1773130260197,0.0002,70892.0,70887.0,0.11030669]
[1773130260407,0.0002,70892.0,70886.0,0.11030669]
[1773130261276,0.0002,70892.0,70887.0,0.11030669]
[1773130261492,0.0002,70892.0,70884.0,0.00148]
[1773130261710,0.0002,70892.0,70879.0,0.16560283]
[1773130261963,0.57906017,70888.0,70874.0,8.55e-05]
[1773130262158,0.57906017,70882.0,70871.0,0.00148]
[1773130262375,0.03,70879.0,70871.0,0.00148]
[1773130262590,0.03,70879.0,70859.0,0.00022]
[1773130262791,0.15916447,70890.0,70859.0,0.00022]
[1773130262792,0.03,70875.0,70859.0,0.00022]
[1773130262944,0.03,70871.0,70859.0,0.00022]
[1773130263154,0.03,70869.0,70859.0,0.00022]
[1773130263362,0.03,70865.0,70855.0,0.0017]
[1773130263562,0.03,70863.0,70851.0,0.00022]
[1773130263753,0.00148,70868.0,70851.0,0.00022]
[1773130263754,0.61524314,70861.0,70851.0,0.00022]
[1773130263974,0.61524314,70861.0,70830.0,0.43666613]
[1773130263975,0.03,70861.0,70845.0,0.00148]
[1773130264631,0.61524314,70861.0,70845.0,0.00148]
[1773130264999,0.03,70860.0,70846.0,0.54692074]
[1773130265221,0.00148,70865.0,70848.0,0.09993939]
[1773130265422,0.58524314,70874.0,70849.0,0.54692074]
[1773130265621,0.00023,70875.0,70854.0,0.54692074]
[1773130265825,0.00023,70875.0,70855.0,0.10353616]
[1773130266025,0.58524314,70874.0,70856.0,0.00148]
[1773130266225,0.03,70871.0,70857.0,0.00148]
[1773130266604,0.61524314,70871.0,70857.0,0.00148]
[1773130267018,0.61524314,70871.0,70850.0,0.09993939]
[1773130267218,0.61524314,70871.0,70851.0,0.00148]
[1773130267428,0.61524314,70871.0,70850.0,0.09993939]
[1773130267621,0.00023,70875.0,70855.0,0.54692074]
[1773130267832,0.03,70873.0,70856.0,0.1273981]
[1773130268086,0.03,70867.0,70850.0,0.00022]
[1773130268315,0.61524314,70865.0,70850.0,0.00022]
[1773130268542,0.03,70862.0,70850.0,0.00022]
[1773130268746,0.00023,70875.0,70853.0,0.54692074]
[1773130268945,0.00023,70875.0,70856.0,0.1273981]
[1773130269674,0.03,70873.0,70856.0,0.1273981]
[1773130269876,0.0094626,70874.0,70850.0,0.15938447]
[1773130269877,0.03,70867.0,70850.0,0.1290981]
[1773130270249,0.0094626,70874.0,70850.0,0.1290981]
[1773130270250,0.03,70861.0,70851.0,0.1273981]
[1773130270491,0.03,70861.0,70843.0,0.00022]
[1773130270689,0.03,70859.0,70843.0,0.1276181]
[1773130270893,0.03,70859.0,70844.0,0.1273981]
[1773130271046,0.03,70859.0,70843.0,0.54714074]
[1773130271047,0.03,70859.0,70845.0,0.1273981]
[1773130271245,0.03,70859.0,70847.0,0.54692074]
[1773130271450,0.03,70859.0,70848.0,0.1273981]
[1773130271659,0.58524314,70871.0,70848.0,0.1273981]
[1773130271865,0.00023,70875.0,70851.0,0.1273981]
[1773130272067,0.0094626,70873.0,70851.0,0.1273981]
[1773130272397,0.58524314,70872.0,70851.0,0.1273981]
[1773130272588,0.58672314,70872.0,70851.0,0.1273981]
[1773130272791,0.03,70869.0,70851.0,0.1273981]
[1773130274003,0.03,70867.0,70851.0,0.1273981]
[1773130274165,0.00148,70866.0,70851.0,0.1273981]
[1773130274776,0.03,70864.0,70843.0,0.0017]
[1773130274979,0.03,70862.0,70844.0,0.11744205]
[1773130275183,0.03,70859.0,70844.0,0.11744205]
[1773130275404,0.03,70859.0,70848.0,0.11744205]
[1773130275807,0.03,70859.0,70850.0,0.00022]
[1773130276216,0.03,70857.0,70850.0,0.00022]
[1773130276422,0.03,70857.0,70844.0,0.00148]
[1773130276423,0.61524314,70857.0,70844.0,0.00148]
[1773130276969,0.00148,70868.0,70849.0,0.11742905]
[1773130277142,0.00148,70867.0,70851.0,0.11742905]
[1773130277347,0.03,70865.0,70852.0,0.00148]
[1773130277641,0.03,70863.0,70852.0,0.00148]
[1773130278398,0.03,70863.0,70851.0,0.11742905]
[1773130278399,0.03,70863.0,70843.0,0.00022]
[1773130278634,0.0109426,70864.0,70845.0,0.00148]
[1773130278635,0.58524314,70858.0,70845.0,0.00148]
[1773130278839,0.03148,70857.0,70845.0,0.00148]
[1773130279344,0.03,70857.0,70848.0,0.12244702]
[1773130279745,0.03,70856.0,70839.0,0.12244702]
[1773130280288,0.03,70856.0,70836.0,0.00148]
[1773130280289,0.03,70850.0,70829.0,0.20793032]
[1773130280498,0.0109426,70855.0,70831.0,0.00148]
[1773130280499,0.03,70844.0,70831.0,0.00148]
[1773130280679,0.03,70840.0,70831.0,0.00148]
[1773130281112,0.03,70838.0,70825.0,0.00045]
[1773130281317,0.61524314,70836.0,70825.0,0.00193]
[1773130281430,0.61524314,70836.0,70825.0,0.00045]
[1773130281635,0.03,70836.0,70826.0,0.12257939]
[1773130282038,0.03,70836.0,70826.0,0.00148]
[1773130282245,0.03,70834.0,70825.0,0.00045]
[1773130282453,0.00148,70840.0,70826.0,0.12262645]
[1773130282710,0.00148,70844.0,70828.0,0.12262645]
[1773130282858,0.00148,70843.0,70825.0,0.12307645]
[1773130283060,0.00148,70842.0,70825.0,0.12307645]
[1773130283259,0.00148,70841.0,70825.0,0.12307645]
[1773130283455,0.03,70839.0,70828.0,0.00022]
[1773130284243,0.03,70835.0,70822.0,0.00148]
[1773130284457,0.61524314,70835.0,70822.0,0.00148]
[1773130284677,0.03,70833.0,70816.0,0.00148]
[1773130284845,0.03,70831.0,70817.0,0.07075451]
[1773130285059,0.69505603,70856.0,70817.0,0.07075451]
[1773130285060,0.00148,70844.0,70823.0,0.54692074]
[1773130285223,0.00148,70843.0,70825.0,0.1273981]
[1773130285435,0.58524314,70842.0,70825.0,0.1273981]
[1773130285608,0.58524314,70840.0,70825.0,0.1273981]
[1773130286018,0.03,70835.0,70817.0,0.07075451]
[1773130286218,0.0094626,70841.0,70818.0,0.54840074]
[1773130286431,0.0705647,70857.0,70831.0,0.1273981]
[1773130286634,0.69505603,70873.0,70836.0,0.1273981]
[1773130286852,0.58524314,70861.0,70838.0,0.1273981]
[1773130287139,0.03,70859.0,70840.0,0.1273981]
[1773130287331,0.58524314,70856.0,70840.0,0.1273981]
[1773130287541,0.03,70853.0,70840.0,0.1273981]
[1773130288554,0.03,70855.0,70840.0,0.1273981]
[1773130288764,0.03,70855.0,70841.0,0.07058059]
[1773130289395,0.00148,70867.0,70845.0,0.1273981]
[1773130289605,0.07075317,70869.0,70847.0,0.1273981]
[1773130289606,0.00148,70866.0,70847.0,0.1273981]
[1773130290005,0.61524314,70865.0,70847.0,0.1273981]
[1773130290844,0.61524314,70865.0,70848.0,0.07057362]
[1773130291052,0.03,70864.0,70849.0,0.1273981]
[1773130291316,0.03,70864.0,70852.0,0.54692074]
[1773130291574,0.03,70864.0,70848.0,0.07057362]
[1773130291575,0.03,70864.0,70853.0,0.1288781]
[1773130291771,0.03,70864.0,70853.0,0.00148]
[1773130291943,0.61524314,70864.0,70853.0,0.00148]
[1773130292318,0.61524314,70864.0,70851.0,0.00148]
[1773130292521,0.03,70863.0,70851.0,0.00148]
[1773130292723,0.03,70863.0,70853.0,0.07056864]
[1773130293208,0.03,70863.0,70853.0,0.19796674]
[1773130293660,0.0002,70869.0,70854.0,0.58330235]
[1773130293832,0.0002,70890.0,70854.0,0.1273981]
[1773130293833,0.07764227,70880.0,70854.0,0.1273981]
[1773130294055,0.07054295,70879.0,70858.0,0.1273981]
[1773130294210,0.07054295,70879.0,70860.0,0.1273981]
[1773130294660,0.03,70878.0,70860.0,0.1273981]
[1773130295225,0.56609748,70880.0,70860.0,0.1273981]
[1773130295226,0.03,70876.0,70861.0,0.07056067]
[1773130295433,0.03,70872.0,70854.0,0.07056732]
[1773130295808,0.03,70866.0,70855.0,0.07056665]
[1773130295940,0.00148,70874.0,70859.0,0.1273981]
[1773130296141,0.00023,70875.0,70859.0,0.1273981]
[1773130296142,0.00171,70875.0,70859.0,0.1273981]
[1773130296339,0.00023,70875.0,70859.0,0.1273981]
[1773130296563,0.55922748,70875.0,70859.0,0.1273981]
[1773130296967,0.03,70874.0,70859.0,0.1273981]
[1773130297378,0.58899748,70872.0,70860.0,0.07056167]
[1773130297551,0.03,70872.0,70861.0,0.00148]
[1773130297751,0.58899748,70872.0,70861.0,0.00148]
[1773130298160,0.03,70869.0,70849.0,0.07057228]
[1773130298387,0.03,70863.0,70850.0,0.00171]
[1773130298613,0.07054821,70874.0,70844.0,0.1273981]
[1773130298614,0.03,70859.0,70849.0,0.07057244]
[1773130298765,0.03,70857.0,70846.0,0.07057543]
[1773130298971,0.58899748,70855.0,70842.0,0.07079923]
[1773130299174,0.59047748,70855.0,70842.0,0.07079923]
[1773130299625,0.03,70853.0,70843.0,0.58330235]
[1773130299800,0.00148,70865.0,70845.0,0.58330235]
[1773130300014,0.00148,70865.0,70848.0,0.1273981]
[1773130300322,0.55899748,70864.0,70848.0,0.1273981]
[1773130300522,0.03,70863.0,70849.0,0.00148]
[1773130300720,0.00148,70865.0,70842.0,0.07079923]
[1773130300721,0.03,70859.0,70847.0,0.00148]
[1773130300925,0.58899748,70859.0,70847.0,0.00148]
[1773130301543,0.58899748,70859.0,70842.0,0.07079923]
[1773130301745,0.66104082,70859.0,70842.0,0.07079923]
[1773130301919,0.66104082,70859.0,70842.0,0.07079922]
[1773130302531,0.66104082,70859.0,70834.0,0.07080675]
[1773130303656,0.66104082,70859.0,70847.0,0.00022]
[1773130303827,0.65956082,70859.0,70838.0,0.07058333]
[1773130304037,0.03,70854.0,70836.0,0.07058525]
[1773130304208,0.03,70850.0,70836.0,0.07058525]